bitfinex/quotes_SOLUSD_20240729
["timestamp","ask_amount","ask_price","bid_price","bid_amount"]
[1722289312394,5.4328,184.07,183.98,5.4351]
[1722289312600,16.36,184.18,184.01,13.5861]
[1722289312601,28.76,184.12,184.01,13.5861]
[1722289312895,28.76,184.12,184.02,5.434]
[1722289313109,28.76,184.16,184.01,13.5861]
[1722289313394,5.4302,184.16,184.01,13.5861]
[1722289313593,0.1392867,184.19,184.06,13.5825]
[1722289313796,5.4302,184.16,184.07,5.4326]
[1722289313987,5.4309,184.14,184.06,13.5825]
[1722289314178,5.4301,184.16,184.07,5.4326]
[1722289314495,6.01672036,184.19,184.06,13.5825]
[1722289314803,5.4296,184.18,184.1,5.4315]
[1722289315696,5.4296,184.18,184.11,5.4314]
[1722289316596,0.1392867,184.19,184.12,5.431]
[1722289316984,0.1392867,184.19,184.1,13.5792]
[1722289318109,0.1392867,184.19,184.14,5.4305]
[1722289318477,0.1392867,184.19,184.1,13.5792]
[1722289319097,5.5685867,184.19,184.1,13.5792]
[1722289319398,5.5685867,184.19,184.11,5.4314]
[1722289319700,0.1392867,184.19,184.1,13.5792]
[1722289319901,20.1392867,184.19,184.1,13.5792]
[1722289320698,20.1392867,184.19,184.14,5.4305]
[1722289320908,20.1392867,184.19,184.13,5.4309]
[1722289321080,20.1392867,184.19,184.14,5.4305]
[1722289321799,20.1392867,184.19,184.1,33.5792]
[1722289322000,0.1392867,184.19,184.13,13.5769]
[1722289322309,0.1392867,184.19,184.17,5.4296]
[1722289322690,0.1392867,184.19,184.16,13.5744]
[1722289323102,0.1392867,184.19,184.16,19.0043]
[1722289323281,0.1392867,184.19,184.16,13.5744]
[1722289324507,0.1392867,184.19,184.16,19.0044]
[1722289324689,0.1392867,184.19,184.16,13.5744]
[1722289327199,0.1392867,184.19,184.16,19.0044]
[1722289328300,0.1392867,184.19,184.16,13.5744]
[1722289329009,0.1392867,184.19,184.18,5.4294]
[1722289332189,0.1392867,184.19,184.17,5.4297]
[1722289332536,0.1392867,184.19,184.18,5.4294]
[1722289337725,5.4269,184.27,184.21,5.4283]
[1722289337935,5.4269,184.27,184.22,5.4282]
[1722289338431,5.4269,184.27,184.21,5.4285]
[1722289339720,5.4269,184.27,184.22,5.4282]
[1722289341038,257.9,184.38,184.18,15.2301]
[1722289341225,257.9,184.38,184.21,20.0]
[1722289341407,257.9,184.38,184.28,5.4265]
[1722289341734,381.6132493,184.41,184.3,13.5646]
[1722289341735,0.9132493,184.41,184.3,13.5646]
[1722289342030,5.4245,184.35,184.3,18.9903]
[1722289342232,5.423,184.4,184.33,18.9868]
[1722289342433,0.9132493,184.41,184.31,5.4254]
[1722289342731,5.4244,184.35,184.29,18.991]
[1722289342936,5.4244,184.35,184.3,5.4259]
[1722289343315,5.4241,184.36,184.3,5.4259]
[1722289343519,5.4242,184.36,184.31,5.4255]
[1722289343745,5.4245,184.35,184.3,5.4259]
[1722289343911,0.9132493,184.41,184.32,13.5631]
[1722289344115,0.9132493,184.41,184.3,5.4259]
[1722289344339,5.4236,184.38,184.28,20.0]
[1722289344643,20.0,184.37,184.33,5.425]
[1722289344811,5.4235,184.38,184.32,5.4252]
[1722289345008,0.9132493,184.41,184.31,13.5639]
[1722289345209,0.9132493,184.41,184.33,5.4249]
[1722289345520,5.4236,184.38,184.32,5.4252]
[1722289346032,5.4239,184.37,184.31,18.9895]
[1722289346330,5.4239,184.37,184.32,5.4253]
[1722289346528,5.4234,184.39,184.33,5.425]
[1722289346729,5.4234,184.39,184.31,13.5639]
[1722289346933,5.423,184.4,184.34,5.4247]
[1722289347116,25.4233,184.39,184.34,5.4247]
[1722289347710,20.0,184.39,184.35,5.4244]
[1722289347924,20.0,184.4,184.35,5.4244]
[1722289348312,20.0,184.4,184.36,5.4241]
[1722289348513,6.3359493,184.41,184.36,5.4241]
[1722289348925,0.9132493,184.41,184.36,5.4241]
[1722289349820,0.9132493,184.41,184.37,5.4238]
[1722289350127,0.9132493,184.41,184.37,5.4236]
[1722289350333,0.9132493,184.41,184.4,5.4229]
[1722289350540,0.9132493,184.41,184.39,5.4232]
[1722289350841,0.9132493,184.41,184.4,5.4229]
[1722289351346,0.9132493,184.41,184.37,13.5593]
[1722289352144,0.9132493,184.41,184.39,5.4232]
[1722289353034,0.9132493,184.41,184.4,5.4229]
[1722289353428,0.9132493,184.41,184.39,5.4232]
[1722289354334,0.9132493,184.41,184.4,5.4229]
[1722289354751,0.9132493,184.41,184.38,5.4232]
[1722289354922,0.9132493,184.41,184.39,5.4232]
[1722289360951,0.9132493,184.41,184.4,18.9803]
[1722289363542,0.9132493,184.41,184.4,13.5574]
[1722289364848,0.9132493,184.41,184.4,18.9803]
[1722289365049,5.4215,184.45,184.4,18.9803]
[1722289365050,5.4215,184.45,184.4,13.5574]
[1722289365258,0.7040375,184.41,184.4,13.5574]
[1722289367942,0.7040375,184.41,184.39,5.4232]
[1722289369155,0.7040375,184.41,184.4,20.06485755]
[1722289369453,0.7040375,184.41,184.4,89.4303]
[1722289369851,0.7040375,184.41,184.4,109.4303]
[1722289370051,5.42,184.5,184.4,109.4303]
[1722289370252,5.87743366,184.53,184.45,5.4212]
[1722289370459,5.42,184.51,184.45,5.4212]
[1722289370855,5.4201,184.5,184.45,5.4212]
[1722289371457,5.87743366,184.53,184.45,5.4212]
[1722289371458,5.4198,184.51,184.45,5.4212]
[1722289372039,5.4201,184.5,184.45,5.4212]
[1722289372239,19.42573366,184.53,184.44,25.45]
[1722289372439,5.4205,184.49,184.44,30.8718]
[1722289372654,5.42,184.5,184.44,30.8718]
[1722289373138,5.42,184.5,184.45,5.4214]
[1722289374155,5.4203,184.49,184.44,30.8717]
[1722289374358,5.4203,184.49,184.45,45.0]
[1722289374562,19.42573366,184.53,184.45,50.4214]
[1722289374756,5.4203,184.5,184.45,50.4214]
[1722289375265,5.4203,184.5,184.45,45.0]
[1722289375566,5.4203,184.5,184.45,50.4214]
[1722289376343,20.0,184.52,184.45,45.0]
[1722289376344,5.4203,184.49,184.45,45.0]
[1722289377067,20.0,184.52,184.45,45.0]
[1722289377360,5.4201,184.5,184.45,50.4215]
[1722289377566,5.4201,184.5,184.45,51.50558509]
[1722289377769,5.4203,184.49,184.45,46.08408509]
[1722289379553,5.87743366,184.53,184.45,58.5531]
[1722289380254,5.4197,184.51,184.46,5.4209]
[1722289380458,5.4197,184.51,184.47,45.0]
[1722289381245,5.4194,184.52,184.47,50.4208]
[1722289381465,5.4197,184.51,184.47,45.0]
[1722289381770,5.4197,184.51,184.46,45.0]
[1722289382473,5.4197,184.51,184.46,50.4209]
[1722289386951,5.4194,184.52,184.47,5.4208]
[1722289387272,5.4195,184.52,184.46,45.0]
[1722289387472,5.4195,184.52,184.47,5.4209]
[1722289387882,5.4197,184.51,184.46,50.4211]
[1722289389278,5.87743366,184.53,184.48,5.4205]
[1722289389578,20.0,184.52,184.48,5.4205]
[1722289390055,0.7635317,184.54,184.48,5.4205]
[1722289390452,5.4194,184.53,184.48,5.4205]
[1722289390659,20.0,184.52,184.48,5.4205]
[1722289391270,25.4195,184.52,184.47,21.243]
[1722289391464,25.4195,184.52,184.48,45.0]
[1722289392978,0.7635317,184.54,184.49,5.4203]
[1722289393151,0.7635317,184.54,184.5,45.0]
[1722289393360,0.7635317,184.54,184.49,20.17]
[1722289393552,0.7635317,184.54,184.5,45.0]
[1722289394080,0.7635317,184.54,184.53,5.4191]
[1722289394279,0.7635317,184.54,184.53,50.4191]
[1722289395885,0.7635317,184.54,184.53,70.4191]
[1722289398680,20.0,184.65,184.55,20.0]
[1722289398861,380.7,184.64,184.56,45.0]
[1722289399065,20.0,184.63,184.56,45.0]
[1722289399290,20.0,184.63,184.55,45.0]
[1722289399472,5.4166,184.62,184.55,45.0]
[1722289399671,20.0,184.61,184.56,5.418]
[1722289399877,25.417,184.61,184.57,45.0]
[1722289400097,380.7,184.64,184.57,45.0]
[1722289400277,20.0,184.63,184.56,45.0]
[1722289401399,380.7,184.64,184.58,5.4174]
[1722289401601,380.7,184.64,184.59,50.4172]
[1722289401776,380.7,184.64,184.6,5.4171]
[1722289401979,380.7,184.64,184.61,45.0]
[1722289402288,380.7,184.64,184.61,50.4167]
[1722289402510,380.7,184.64,184.61,45.0]
[1722289402683,380.7,184.64,184.6,58.5426]
[1722289402883,380.7,184.64,184.62,5.4164]
[1722289403085,380.7,184.64,184.63,45.0]
[1722289403393,5.415,184.67,184.63,45.0]
[1722289404199,5.4153,184.66,184.63,45.0]
[1722289405200,5.4153,184.66,184.62,45.0]
[1722289405409,5.4159,184.65,184.62,45.0]
[1722289405599,5.4159,184.65,184.61,45.0]
[1722289406209,5.4159,184.65,184.6,45.0]
[1722289407084,5.4153,184.66,184.6,45.0]
[1722289407298,13.5363,184.69,184.6,45.0]
[1722289407486,5.4152,184.67,184.6,50.417]
[1722289407694,19.0446781,184.69,184.6,50.417]
[1722289408006,5.4159,184.65,184.6,65.0]
[1722289408209,5.4154,184.66,184.61,5.4166]
[1722289408382,5.5083781,184.69,184.62,45.0]
[1722289408581,5.4162,184.63,184.59,15.6127]
[1722289408787,5.4165,184.62,184.6,45.0]
[1722289409201,13.5376,184.67,184.6,45.0]
[1722289409414,5.4162,184.63,184.59,15.6127]
[1722289409712,13.5376,184.67,184.59,15.6127]
[1722289410005,5.4171,184.6,184.55,26.2457]
[1722289410210,5.4171,184.6,184.56,12.7]
[1722289410592,12.7,184.63,184.56,12.7]
[1722289410593,5.4168,184.61,184.56,12.7]
[1722289411324,5.4162,184.63,184.58,5.4175]
[1722289411489,18.1166,184.62,184.56,5.4181]
[1722289411692,18.1166,184.62,184.57,45.0]
[1722289412016,5.4168,184.61,184.57,45.0]
[1722289413099,18.1168,184.61,184.57,45.0]
[1722289414007,5.4171,184.6,184.57,45.0]
[1722289414185,13.5414,184.62,184.53,42.4473]
[1722289414389,12.7,184.59,184.53,42.4473]
[1722289414589,18.1174,184.59,184.53,47.8664]
[1722289415021,12.7,184.59,184.53,42.4473]
[1722289415196,12.7,184.59,184.55,5.4185]
[1722289415595,12.7,184.59,184.56,45.0]
[1722289416613,18.1173,184.6,184.56,45.0]
[1722289418713,5.4173,184.6,184.56,45.0]
[1722289418921,18.1173,184.6,184.56,45.0]
[1722289419593,5.4184,184.56,184.53,15.8179]
[1722289419788,12.7,184.54,184.52,13.5486]
[1722289420101,12.7,184.54,184.53,45.0]
[1722289420797,12.7,184.54,184.48,6.2523]
[1722289421117,12.7,184.52,184.48,6.2523]
[1722289421888,12.7,184.5,184.47,16.4519]
[1722289422098,69.8518781,184.59,184.47,16.4519]
[1722289422099,19.0518781,184.59,184.47,16.4519]
[1722289422294,12.7,184.49,184.47,16.4519]
[1722289422713,18.1201,184.5,184.47,16.4519]
[1722289422919,5.4196,184.52,184.47,16.4519]
[1722289423220,12.7,184.51,184.48,5.4206]
[1722289423606,5.4192,184.53,184.48,5.4206]
[1722289424008,12.7,184.51,184.49,45.0]
[1722289424524,13.5456,184.57,184.47,16.4519]
[1722289424819,13.5456,184.57,184.48,45.0]
[1722289424820,12.7,184.51,184.48,45.0]
[1722289424999,18.1197,184.51,184.48,45.0]
[1722289425201,5.4194,184.52,184.48,45.0]
[1722289425524,12.7,184.51,184.48,45.0]
[1722289425701,5.4203,184.49,184.48,45.0]
[1722289425895,12.7,184.5,184.48,45.0]
[1722289426100,12.7,184.51,184.48,45.0]
[1722289427222,5.4203,184.49,184.48,45.0]
[1722289427518,12.7,184.51,184.48,45.0]
[1722289428220,5.4192,184.53,184.48,45.0]
[1722289428424,12.7,184.51,184.48,45.0]
[1722289428903,18.1195,184.52,184.48,45.0]
[1722289429219,5.4191,184.54,184.48,50.4206]
[1722289429416,12.7,184.53,184.48,50.4206]
[1722289429812,5.5083781,184.58,184.48,50.4206]
[1722289429813,5.4185,184.56,184.48,45.0]
[1722289430011,12.7,184.52,184.48,45.0]
[1722289430211,12.7,184.51,184.48,45.0]
[1722289431019,5.5083781,184.58,184.5,13.5497]
[1722289431226,12.7,184.55,184.51,50.4197]
[1722289431521,12.7,184.54,184.52,5.4194]
[1722289431819,12.7,184.55,184.52,5.4194]
[1722289432021,12.7,184.55,184.52,6.50305933]
[1722289432397,12.7,184.55,184.52,5.4194]
[1722289432602,12.7,184.55,184.51,50.4197]
[1722289432822,12.7,184.54,184.48,12.7]
[1722289433003,12.7,184.54,184.47,36.4519]
[1722289433004,12.7,184.53,184.49,50.42]
[1722289433404,12.7,184.54,184.49,50.42]
[1722289433806,12.7,184.54,184.49,58.5504]
[1722289434022,12.7,184.54,184.5,5.42]
[1722289434226,12.7,184.54,184.51,45.0]
[1722289434410,12.7,184.54,184.5,5.42]
[1722289434726,5.4181,184.57,184.51,45.0]
[1722289434916,5.4185,184.56,184.49,58.5504]
[1722289435099,5.4186,184.55,184.5,5.42]
[1722289435301,5.4181,184.57,184.52,5.4193]
[1722289435607,12.7,184.55,184.53,50.4191]
[1722289435809,12.7,184.55,184.51,63.9684]
[1722289436028,18.1186,184.55,184.51,58.5487]
[1722289436415,12.7,184.54,184.51,58.5487]
[1722289436607,12.7,184.54,184.51,45.0]
[1722289436808,12.7,184.54,184.49,5.42]
[1722289436809,12.7,184.54,184.5,45.0]
[1722289437015,12.7,184.55,184.5,58.55]
[1722289437933,5.4185,184.56,184.5,58.55]
[1722289438099,12.7,184.55,184.5,58.55]
[1722289438512,18.1186,184.55,184.5,58.55]
[1722289438728,12.7,184.55,184.51,5.4196]
[1722289438932,18.1186,184.55,184.52,45.0]
[1722289439232,18.1186,184.55,184.5,58.55]
[1722289439725,5.42,184.5,184.47,16.4519]
[1722289439935,12.7,184.5,184.47,16.4519]
[1722289440237,45.17,184.63,184.47,16.4519]
[1722289440406,12.7,184.48,184.47,16.4519]
[1722289440606,5.4202,184.5,184.47,16.4519]
[1722289441020,13.5467,184.55,184.47,16.4519]
[1722289441343,18.1206,184.48,184.47,16.4519]
[1722289441626,12.7,184.48,184.47,16.4519]
[1722289441924,13.5486,184.53,184.47,16.4519]
[1722289442127,12.7,184.48,184.47,16.4519]
[1722289442317,18.1206,184.48,184.47,16.4519]
[1722289444307,13.5486,184.53,184.47,16.4519]
[1722289444511,12.7,184.48,184.47,16.4519]
[1722289445144,18.1206,184.48,184.47,16.4519]
[1722289445524,5.4206,184.48,184.47,16.4519]
[1722289445727,18.1206,184.48,184.47,16.4519]
[1722289446830,18.1206,184.48,184.47,61.4519]
[1722289448018,5.4206,184.48,184.47,61.4519]
[1722289448218,18.1206,184.48,184.47,61.4519]
[1722289448649,5.4206,184.48,184.47,61.4519]
[1722289448854,18.1206,184.48,184.47,61.4519]
[1722289450239,5.4206,184.48,184.47,61.4519]
[1722289450547,18.1206,184.48,184.47,61.4519]
[1722289451138,5.4197,184.51,184.47,61.4519]
[1722289451346,12.7,184.49,184.47,61.4519]
[1722289451540,5.42,184.5,184.47,61.4519]
[1722289451845,12.7,184.49,184.47,61.4519]
[1722289452345,18.1203,184.49,184.47,61.4519]
[1722289452714,12.7,184.48,184.47,61.4519]
[1722289454544,18.1203,184.49,184.47,61.4519]
[1722289454765,18.1203,184.49,184.48,45.0]
[1722289455237,33.5472,184.54,184.47,16.4519]
[1722289455238,5.4206,184.48,184.47,16.4519]
[1722289455439,18.1206,184.48,184.47,61.4519]
[1722289455823,18.1206,184.48,184.47,16.4519]
[1722289456920,18.1206,184.48,184.47,61.4519]
[1722289458146,5.4206,184.48,184.47,61.4519]
[1722289461322,5.4206,184.48,184.47,16.4519]
[1722289461524,5.4206,184.48,184.43,26.4354]
[1722289461525,18.1206,184.48,184.43,26.4354]
[1722289461835,18.1206,184.48,184.44,45.0]
[1722289464051,5.4206,184.48,184.44,45.0]
[1722289464553,18.1206,184.48,184.44,45.0]
[1722289464922,33.5472,184.54,184.44,45.0]
[1722289465121,18.1207,184.48,184.44,45.0]
[1722289466040,12.7,184.48,184.44,45.0]
[1722289466238,5.4209,184.47,184.44,45.0]
[1722289466940,5.4207,184.48,184.44,45.0]
[1722289467141,18.1207,184.48,184.44,45.0]
[1722289468541,5.4207,184.48,184.44,45.0]
[1722289468931,18.1207,184.48,184.44,45.0]
[1722289470545,13.5493,184.52,184.44,50.4217]
[1722289470738,12.7,184.48,184.44,50.4217]
[1722289473329,18.1207,184.48,184.44,45.0]
[1722289474137,5.4207,184.48,184.44,45.0]
[1722289474342,18.1207,184.48,184.44,45.0]
[1722289476032,5.4209,184.47,184.44,45.0]
[1722289476957,18.1206,184.48,184.44,45.0]
[1722289477653,12.7,184.46,184.44,45.0]
[1722289477852,18.1214,184.46,184.44,45.0]
[1722289478862,13.5499,184.51,184.44,45.0]
[1722289478863,5.4209,184.48,184.44,45.0]
[1722289479050,12.7,184.46,184.44,45.0]
[1722289479930,18.1212,184.46,184.44,45.0]
[1722289480463,12.7,184.46,184.44,45.0]
[1722289480661,13.5499,184.51,184.44,45.0]
[1722289480846,12.7,184.46,184.44,45.0]
[1722289481442,12.7,184.47,184.44,45.0]
[1722289482459,5.4213,184.46,184.44,45.0]
[1722289484063,18.1213,184.46,184.44,45.0]
[1722289486138,5.4213,184.46,184.44,45.0]
[1722289486341,18.1213,184.46,184.44,45.0]
[1722289486868,5.4213,184.46,184.44,45.0]
[1722289487043,18.1213,184.46,184.44,45.0]
[1722289487440,12.7,184.45,184.44,45.0]
[1722289489546,18.1215,184.45,184.44,45.0]
[1722289490568,18.1215,184.45,184.43,45.0]
[1722289490753,12.7,184.44,184.43,45.0]
[1722289491359,70.8,184.5,184.42,16.169]
[1722289491664,70.8,184.5,184.39,25.313]
[1722289491665,12.7,184.43,184.39,25.313]
[1722289491965,12.7,184.41,184.39,6.3318]
[1722289492740,5.4223,184.43,184.39,6.3318]
[1722289492953,12.7,184.42,184.39,6.3318]
[1722289493262,12.7,184.42,184.4,45.0]
[1722289495547,18.1224,184.42,184.4,45.0]
[1722289498067,5.4226,184.41,184.4,45.0]
[1722289498457,5.4224,184.42,184.4,45.0]
[1722289498764,18.1224,184.42,184.4,45.0]
[1722289498951,5.4224,184.42,184.4,45.0]
[1722289499155,18.1224,184.42,184.4,45.0]
[1722289499767,5.4226,184.41,184.4,45.0]
[1722289501068,13.5528,184.47,184.4,45.0]
[1722289501282,5.4226,184.41,184.4,45.0]
[1722289501781,18.1224,184.42,184.4,45.0]
[1722289502448,5.4224,184.42,184.4,45.0]
[1722289503471,20.0,184.46,184.4,45.0]
[1722289503765,12.7,184.44,184.4,85.0]
[1722289503973,12.7,184.44,184.4,70.4228]
[1722289504163,20.0,184.49,184.4,45.0]
[1722289504164,13.553,184.47,184.4,45.0]
[1722289504368,20.0,184.46,184.39,6.3318]
[1722289504670,12.7,184.4,184.39,6.3318]
[1722289504978,18.1229,184.4,184.37,15.0012]
[1722289505869,18.1229,184.4,184.38,45.0]
[1722289506874,5.4232,184.39,184.38,45.0]
[1722289507061,5.4232,184.39,184.37,15.0012]
[1722289507062,5.4235,184.38,184.37,15.0012]
[1722289507261,18.1235,184.38,184.37,15.0012]
[1722289508149,12.7,184.38,184.27,29.3263]
[1722289508349,33.5602,184.37,184.27,15.7597]
[1722289508672,12.7,184.28,184.27,15.7597]
[1722289508867,5.4259,184.31,184.27,15.7597]
[1722289509052,12.7,184.28,184.27,15.7597]
[1722289509952,5.4262,184.29,184.27,60.7597]
[1722289510162,18.1265,184.28,184.27,15.7597]
[1722289510352,12.7,184.28,184.27,15.7597]
[1722289511848,12.7,184.28,184.27,60.7597]
[1722289512567,18.1265,184.28,184.27,60.7597]
[1722289515667,5.4268,184.27,184.25,6.0782]
[1722289515973,5.4268,184.27,184.26,45.0]
[1722289516175,18.1268,184.27,184.26,45.0]
[1722289517879,18.1268,184.27,184.2,20.0598]
[1722289517880,13.5659,184.29,184.2,6.4877]
[1722289518077,12.7,184.21,184.2,6.4877]
[1722289518460,5.428,184.23,184.2,6.4877]
[1722289518665,12.7,184.21,184.2,6.4877]
[1722289519383,18.1285,184.21,184.18,15.1169]
[1722289519576,12.7,184.2,184.18,15.1169]
[1722289520888,12.7,184.2,184.19,45.0]
[1722289521066,12.7,184.21,184.19,45.0]
[1722289521267,12.7,184.21,184.19,65.0]
[1722289522073,12.7,184.21,184.19,45.0]
[1722289522463,12.7,184.21,184.2,20.0]
[1722289522673,12.7,184.21,184.2,45.0]
[1722289523191,18.1286,184.21,184.19,45.0]
[1722289523369,5.4282,184.22,184.19,45.0]
[1722289523569,12.7,184.2,184.19,45.0]
[1722289523901,12.7,184.21,184.19,45.0]
[1722289525064,18.1286,184.21,184.19,45.0]
[1722289525275,12.7,184.2,184.19,45.0]
[1722289525477,18.1288,184.2,184.19,45.0]
[1722289526779,12.7,184.2,184.19,45.0]
[1722289527084,12.7,184.21,184.19,45.0]
[1722289527278,13.5673,184.27,184.19,45.0]
[1722289527591,12.7,184.21,184.19,45.0]
[1722289527772,5.4282,184.22,184.19,45.0]
[1722289527971,12.7,184.21,184.19,45.0]
[1722289528186,12.7,184.2,184.19,45.0]
[1722289528389,12.7,184.2,184.19,45.17]
[1722289528597,5.4282,184.22,184.19,45.17]
[1722289528892,12.7,184.2,184.19,45.0]
[1722289529094,12.7,184.2,184.19,45.17]
[1722289529478,5.4282,184.23,184.2,20.0]
[1722289529683,13.5673,184.27,184.21,45.0]
[1722289529875,20.0,184.26,184.21,45.0]
[1722289530073,18.1282,184.22,184.21,45.0]
[1722289530596,12.7,184.22,184.21,45.0]
[1722289531480,18.1282,184.22,184.21,45.0]
[1722289538276,5.4282,184.22,184.21,45.0]
[1722289538777,18.1282,184.22,184.21,45.0]
[1722289540597,25.911,184.26,184.14,15.571]
[1722289540804,31.48064674,184.26,184.14,15.571]
[1722289541098,12.7,184.15,184.14,15.571]
[1722289543482,18.1303,184.15,184.14,15.571]
[1722289543682,12.7,184.15,184.14,15.571]
[1722289544294,18.1306,184.15,184.11,20.0]
[1722289544479,18.1307,184.14,184.11,20.0]
[1722289544990,5.4307,184.14,184.11,20.0]
[1722289545385,12.7,184.13,184.11,20.0]
[1722289545997,12.7,184.13,184.12,45.0]
[1722289546182,18.1309,184.13,184.09,20.0]
[1722289546378,13.5737,184.18,184.09,20.0]
[1722289546586,12.7,184.1,184.09,20.0]
[1722289547491,12.7,184.11,184.09,20.0]
[1722289547898,12.7,184.12,184.1,45.0]
[1722289548480,5.4312,184.13,184.1,45.0]
[1722289548804,12.7,184.11,184.1,45.0]
[1722289549178,18.1315,184.11,184.1,45.0]
[1722289550203,5.4315,184.11,184.1,45.0]
[1722289550405,18.1315,184.11,184.1,45.0]
[1722289551202,12.7,184.11,184.1,45.0]
[1722289551407,19.14334674,184.18,184.1,65.0]
[1722289551595,12.7,184.11,184.1,65.0]
[1722289552484,12.7,184.11,184.1,45.0]
[1722289552689,12.7,184.11,184.09,45.0]
[1722289553589,12.7,184.1,184.09,45.0]
[1722289554802,18.1318,184.1,184.09,45.0]
[1722289555795,5.4322,184.09,184.07,0.7635317]
[1722289556113,18.1324,184.08,184.07,0.7635317]
[1722289557097,12.7,184.08,184.07,0.7635317]
[1722289558218,18.1324,184.08,184.07,0.7635317]
[1722289558396,12.7,184.08,184.07,0.7635317]
[1722289560417,18.1324,184.08,184.07,0.7635317]
[1722289560710,5.4324,184.08,184.07,0.7635317]
[1722289560884,5.4324,184.08,184.02,20.0]
[1722289560885,5.4336,184.04,184.02,20.0]
[1722289561086,18.1338,184.03,184.0,20.0]
[1722289561309,12.7,184.02,184.0,20.0]
[1722289562793,5.4341,184.02,184.0,20.0]
[1722289563002,18.1341,184.02,183.98,20.0]
[1722289563210,5.4346,184.01,183.98,20.0]
[1722289563513,12.7,183.99,183.98,20.0]
[1722289567600,12.7,183.99,183.97,21.6868]
[1722289567601,18.135,183.99,183.97,21.6868]
[1722289568217,12.7,183.99,183.98,20.0]
[1722289568918,12.7,183.99,183.96,20.0]
[1722289569303,18.1357,183.97,183.94,20.0]
[1722289569606,12.7,183.95,183.94,20.0]
[1722289571713,5.4357,183.97,183.94,20.0]
[1722289571921,12.7,183.95,183.94,20.0]
[1722289574919,5.4357,183.97,183.94,20.0]
[1722289575234,12.7,183.95,183.94,20.0]
[1722289576129,18.1362,183.95,183.94,20.0]
[1722289576815,12.7,183.95,183.94,20.0]
[1722289577613,5.4361,183.96,183.94,20.0]
[1722289577836,56.2361,183.96,183.94,20.0]
[1722289579934,5.4361,183.96,183.94,20.0]
[1722289580137,12.7,183.95,183.94,20.0]
[1722289581112,5.4361,183.96,183.94,20.0]
[1722289581315,18.1362,183.95,183.94,20.0]
[1722289581836,5.4362,183.95,183.94,20.0]
[1722289582018,12.7,183.95,183.94,20.0]
[1722289585518,18.1362,183.95,183.94,20.0]
[1722289585921,12.7,183.95,183.94,20.0]
[1722289586436,18.1362,183.95,183.92,20.0]
[1722289586637,12.7,183.93,183.92,20.0]
[1722289586825,18.1368,183.93,183.92,20.0]
[1722289587340,12.7,183.93,183.9,20.0]
[1722289587547,12.7,183.91,183.9,20.0]
[1722289587928,18.1374,183.91,183.9,20.0]
[1722289588239,5.4377,183.9,183.89,0.7635317]
[1722289588427,12.7,183.91,183.9,20.0]
[1722289588837,18.1374,183.91,183.9,20.0]
[1722289589224,12.7,183.91,183.9,20.0]